bitfinex/quotes_ETHUSD_20241006
["timestamp","ask_amount","ask_price","bid_price","bid_amount"]
[1728226932965,6.80971,2454.2,2454.1,0.75742115]
[1728226933187,38.58850048,2454.2,2454.1,0.75742115]
[1728226933927,14.87024648,2454.2,2454.1,0.75742115]
[1728226937172,15.67814648,2454.2,2454.1,0.75742115]
[1728226941116,15.67814648,2454.2,2454.1,35.75742115]
[1728226943396,15.67814648,2454.2,2454.1,0.75742115]
[1728226945035,16.10279206,2454.2,2454.1,0.75742115]
[1728226945239,19.46169154,2454.2,2454.1,0.75742115]
[1728226945571,16.10279206,2454.2,2454.1,0.75742115]
[1728226946489,7.60888,2453.4,2453.3,35.0]
[1728226946687,7.60888,2453.4,2453.2,0.81029685]
[1728226946688,6.81091,2453.3,2453.2,0.81029685]
[1728226946891,32.274583,2453.3,2453.2,0.81029685]
[1728226947201,24.664008,2453.3,2453.2,0.81029685]
[1728226948216,19.994257,2453.3,2453.2,0.81029685]
[1728226950527,41.362412,2453.3,2453.2,0.81029685]
[1728226950753,29.346708,2453.3,2453.2,0.81029685]
[1728226951453,30.144808,2453.3,2453.2,0.81029685]
[1728226954105,30.67517728,2453.3,2453.2,0.81029685]
[1728226955668,31.09849017,2453.3,2453.2,0.81029685]
[1728226956998,31.09849017,2453.3,2453.2,0.34817442]
[1728226957534,31.50629017,2453.3,2453.2,0.1305654]
[1728226958225,6.81224,2452.3,2452.1,0.7647]
[1728226958435,43.574119,2452.3,2452.1,0.7647]
[1728226959019,10.402096,2452.3,2452.1,0.7647]
[1728226959382,49.45024,2452.3,2451.9,0.7647]
[1728226959582,40.062166,2452.3,2451.9,0.7647]
[1728226959985,40.062166,2452.3,2451.7,0.7976]
[1728226959986,40.842466,2452.3,2451.7,0.7976]
[1728226960526,40.842466,2452.3,2451.8,35.0]
[1728226961087,7.59254,2452.3,2451.8,35.0]
[1728226961301,47.145369,2452.3,2451.8,35.0]
[1728226962024,47.145369,2452.3,2451.5,0.7976]
[1728226962025,47.78424218,2452.3,2451.5,0.7976]
[1728226962587,47.78424218,2452.3,2451.6,35.0]
[1728226964143,47.23424218,2452.3,2451.6,35.0]
[1728226964294,14.15218318,2452.3,2452.0,0.7976]
[1728226964487,11.15218318,2452.3,2452.0,0.7976]
[1728226964883,11.15218318,2452.3,2452.2,35.86317254]
[1728226965685,14.70218318,2452.3,2452.2,35.86317254]
[1728226965886,10.72005118,2452.3,2452.2,35.86317254]
[1728226967699,4.45111318,2452.3,2452.2,36.66077254]
[1728226967916,3.26224,2452.3,2452.2,36.66077254]
[1728226968986,6.26224,2452.3,2452.2,36.66077254]
[1728226969391,10.72995,2452.3,2452.2,36.66077254]
[1728226969738,10.72995,2452.3,2452.2,35.86317254]
[1728226972096,52.033962,2452.3,2452.2,35.86317254]
[1728226972297,34.343369,2452.3,2452.2,35.86317254]
[1728226972641,34.06771,2452.3,2452.2,0.86317254]
[1728226973153,28.86101,2452.3,2452.2,35.86317254]
[1728226973442,28.86101,2452.3,2452.2,35.86536224]
[1728226973648,28.31101,2452.3,2452.2,35.86536224]
[1728226973802,3.26224,2452.3,2452.2,36.67056224]
[1728226974006,9.090712,2452.3,2452.2,36.67056224]
[1728226974737,6.532353,2452.3,2452.2,36.67056224]
[1728226974904,7.082353,2452.3,2452.2,36.67056224]
[1728226975101,10.082353,2452.3,2452.2,35.86536224]
[1728226975529,10.082353,2452.3,2452.2,0.86536224]
[1728226976133,10.082353,2452.3,2452.2,35.86536224]
[1728226979138,10.082353,2452.3,2452.2,0.86536224]
[1728226979668,10.082353,2452.3,2452.2,35.86536224]
[1728226980646,9.532353,2452.3,2452.2,35.86536224]
[1728226980865,3.26224,2452.3,2452.2,38.43093918]
[1728226981541,3.26212,2452.4,2452.2,38.43093918]
[1728226981542,3.26212,2452.4,2452.2,37.61863918]
[1728226981751,3.26212,2452.4,2452.3,0.8123]
[1728226981961,6.26212,2452.4,2452.3,0.8123]
[1728226982563,6.26212,2452.4,2452.3,0.8144897]
[1728226983236,3.26184,2452.6,2452.4,0.8123]
[1728226983492,3.26184,2452.6,2452.4,0.8144897]
[1728226983977,3.26123,2453.1,2452.5,0.08153876]
[1728226983978,3.26153,2452.9,2452.5,0.08153876]
[1728226984192,3.26153,2452.9,2452.7,0.8123]
[1728226984334,3.26157,2452.8,2452.7,0.8123]
[1728226984536,3.26157,2452.8,2452.7,0.8144897]
[1728226985066,34.76283148,2452.8,2452.7,0.0021897]
[1728226985270,17.496298,2452.8,2452.7,0.0021897]
[1728226985441,14.506603,2452.8,2452.7,0.0021897]
[1728226989243,36.92347,2452.8,2452.7,0.0021897]
[1728226989663,36.270824,2452.8,2452.7,0.0021897]
[1728226990094,39.62972348,2452.8,2452.7,0.0021897]
[1728226990247,34.53544848,2452.8,2452.7,0.0021897]
[1728226990452,32.99791848,2452.8,2452.7,0.0021897]
[1728226991805,33.80951848,2452.8,2452.7,0.0021897]
[1728226992008,34.33988776,2452.8,2452.7,0.0021897]
[1728226992654,3.26224,2452.3,2451.7,0.8123]
[1728226992904,3.79213928,2452.7,2452.3,0.8123]
[1728226993202,3.26197,2452.5,2452.4,35.8123]
[1728226993373,3.26177,2452.7,2452.4,39.47984725]
[1728226993952,3.26177,2452.7,2452.4,38.66754725]
[1728226994168,3.26177,2452.7,2452.5,0.8123]
[1728226994389,3.26177,2452.7,2452.4,38.66754725]
[1728226994390,3.26197,2452.5,2452.4,35.0]
[1728226994632,12.441382,2452.5,2452.4,35.0]
[1728226994854,10.702312,2452.5,2452.4,35.0]
[1728226995303,11.252312,2452.5,2452.4,35.0]
[1728226997010,3.26224,2452.3,2452.1,0.8123]
[1728226997244,6.81224,2452.3,2452.1,0.8123]
[1728226997748,6.81224,2452.3,2452.2,35.86317254]
[1728226998490,6.26224,2452.3,2452.2,35.86317254]
[1728226998961,6.81224,2452.3,2452.2,35.86317254]
[1728226999167,34.599604,2452.3,2452.2,35.86317254]
[1728226999373,6.81224,2452.3,2452.2,35.86317254]
[1728226999576,33.909604,2452.3,2452.2,35.86317254]
[1728226999791,33.506826,2452.3,2452.2,35.86317254]
[1728226999991,32.956393,2452.3,2452.2,0.86317254]
[1728227001598,33.783193,2452.3,2452.2,0.86317254]
[1728227003362,34.20647863,2452.3,2452.2,0.86317254]
[1728227005495,34.74617873,2452.3,2452.2,0.24782493]
[1728227005709,6.81344,2451.4,2451.3,1.03922234]
[1728227005919,62.00725,2451.4,2451.3,1.03922234]
[1728227006234,60.388137,2451.4,2451.3,36.03922234]
[1728227006711,60.388137,2451.4,2451.3,1.03922234]
[1728227007084,55.89789,2451.4,2451.3,1.03922234]
[1728227009738,57.2643901,2451.4,2451.3,1.03922234]
[1728227012214,56.17469,2451.4,2451.3,1.03922234]
[1728227012524,28.322883,2451.4,2451.3,1.03922234]
[1728227012881,17.35148,2451.4,2451.3,1.03922234]
[1728227013334,17.35148,2451.4,2451.3,36.03922234]
[1728227013533,21.810056,2451.4,2451.3,36.03922234]
[1728227013741,24.810056,2451.4,2451.3,36.03922234]
[1728227014453,19.88181,2451.4,2451.3,36.03922234]
[1728227014649,20.43181,2451.4,2451.3,36.03922234]
[1728227016136,20.43181,2451.4,2451.3,1.03922234]
[1728227017947,15.488687,2451.4,2451.3,1.03922234]
[1728227018669,14.938687,2451.4,2451.3,1.03922234]
[1728227018885,14.938687,2451.4,2451.3,1.79202234]
[1728227019184,3.26344,2451.4,2451.3,1.79202234]
[1728227019482,3.26344,2451.4,2451.3,36.79202234]
[1728227019857,6.91169,2451.4,2451.3,36.79202234]
[1728227020048,6.900609,2451.4,2451.3,36.79202234]
[1728227020450,6.26344,2451.4,2451.3,36.79202234]
[1728227020691,10.906769,2451.4,2451.3,36.79202234]
[1728227020981,13.573491,2451.4,2451.3,36.79202234]
[1728227021186,10.703952,2451.4,2451.3,36.79202234]
[1728227021352,6.26344,2451.4,2451.3,36.79202234]
[1728227022045,14.124716,2451.4,2451.3,36.79202234]
[1728227022248,9.793165,2451.4,2451.3,36.79202234]
[1728227022890,8.702395,2451.4,2451.3,36.79202234]
[1728227023758,8.702395,2451.4,2451.3,1.79202234]
[1728227024163,6.26344,2451.4,2451.3,1.79202234]
[1728227024485,6.26344,2451.4,2451.3,36.79202234]
[1728227024893,12.655703,2451.4,2451.3,36.79202234]
[1728227025501,11.276857,2451.4,2451.3,36.79202234]
[1728227025815,6.26344,2451.4,2451.3,36.79202234]
[1728227026171,17.767393,2451.4,2451.3,36.79202234]
[1728227026572,14.458975,2451.4,2451.3,36.79202234]
[1728227027297,14.458975,2451.4,2451.3,1.79202234]
[1728227027460,6.26344,2451.4,2451.3,1.79202234]
[1728227027795,6.26344,2451.4,2451.3,36.79202234]
[1728227029328,15.694017,2451.4,2451.3,36.79202234]
[1728227029499,14.367827,2451.4,2451.3,36.79202234]
[1728227029885,6.26344,2451.4,2451.3,36.79202234]
[1728227032780,21.934446,2451.4,2451.3,36.79202234]
[1728227033499,6.26344,2451.4,2451.3,36.79202234]
[1728227034838,8.790213,2451.4,2451.3,36.79202234]
[1728227034992,3.36837063,2452.2,2451.3,36.79202234]
[1728227034993,3.26311,2451.7,2451.4,0.8085]
[1728227035189,3.26311,2451.7,2451.4,0.89007502]
[1728227036001,3.26317,2451.6,2451.4,0.89007502]
[1728227036199,3.26311,2451.7,2451.5,0.8085]
[1728227036614,6.52624,2451.7,2451.5,0.8085]
[1728227036942,3.26258,2452.1,2451.7,0.8085]
[1728227037240,3.26264,2452.0,2451.9,0.8085]
[1728227040613,3.0,2451.9,2451.5,0.7894]
[1728227040798,3.26317,2451.7,2451.5,0.7894]
[1728227041000,3.26317,2451.7,2451.5,4.88432025]
[1728227041224,6.26286,2451.9,2451.5,4.88432025]
[1728227041225,9.52574,2451.9,2451.5,4.88432025]
[1728227041428,6.26286,2451.9,2451.6,0.7894]
[1728227041612,3.0,2452.0,2451.6,3.36837063]
[1728227041799,3.0,2452.0,2451.8,0.7894]
[1728227042345,3.26259,2452.1,2451.8,3.36837063]
[1728227042523,3.26259,2452.1,2451.9,0.7894]
[1728227042727,3.26264,2452.0,2451.9,0.7894]
[1728227045845,6.26264,2452.0,2451.9,0.7894]
[1728227046710,3.0,2452.0,2451.9,0.7894]
[1728227047218,6.26264,2452.0,2451.9,0.7894]
[1728227048566,3.0,2451.7,2451.4,0.7894]
[1728227048777,3.2633,2451.5,2451.4,0.7894]
[1728227049066,6.26344,2451.4,2451.3,1.03922234]
[1728227051987,10.38731063,2451.4,2451.3,0.61703826]
[1728227052302,25.21468363,2451.4,2451.3,0.61703826]
[1728227052860,26.5269835,2451.4,2451.3,0.61703826]
[1728227054254,25.21468363,2451.4,2451.3,0.61703826]
[1728227055099,25.72000782,2451.4,2451.3,0.61703826]
[1728227055602,26.59583716,2451.4,2451.3,0.61703826]
[1728227061318,25.21468363,2451.4,2451.3,0.61703826]
[1728227061526,10.430509,2451.4,2451.3,0.61703826]
[1728227061881,3.26344,2451.4,2451.3,0.61703826]
[1728227062077,3.2633,2451.5,2451.3,0.61703826]
[1728227062292,3.26344,2451.4,2451.3,0.61703826]
[1728227063109,3.26344,2451.4,2451.3,1.37293826]
[1728227063631,3.2633,2451.5,2451.3,1.37293826]
[1728227066514,6.26344,2451.4,2451.3,1.37293826]
[1728227069212,6.26344,2451.4,2451.3,0.61703826]
[1728227069409,41.163479,2451.4,2451.3,0.61703826]
[1728227069759,19.701675,2451.4,2451.3,0.61703826]
[1728227069961,17.155253,2451.4,2451.3,0.61703826]
[1728227070961,10.752052,2451.4,2451.3,0.61703826]
[1728227071287,10.022249,2451.4,2451.3,0.61703826]
[1728227073372,13.94061963,2451.4,2451.3,0.61703826]
[1728227075691,56.33135263,2451.4,2451.3,0.61703826]
[1728227076180,3.26344,2451.4,2451.3,0.61703826]
[1728227076346,5.898723,2451.4,2451.3,0.61703826]
[1728227076748,6.717123,2451.4,2451.3,0.61703826]
[1728227076970,7.22244719,2451.4,2451.3,0.61703826]
[1728227077383,10.77244719,2451.4,2451.3,0.61703826]
[1728227080970,10.22244719,2451.4,2451.3,0.61703826]
[1728227081273,5.898723,2451.4,2451.3,0.61703826]
[1728227082002,9.26709363,2451.4,2451.3,0.61703826]
[1728227082611,12.81709363,2451.4,2451.3,0.61703826]
[1728227083311,9.448723,2451.4,2451.3,0.61703826]
[1728227084830,12.81709363,2451.4,2451.3,0.61703826]
[1728227085634,12.81709363,2451.4,2451.3,35.61703826]
[1728227086999,14.13641782,2451.4,2451.3,0.61703826]
[1728227088574,72.88813982,2451.4,2451.3,0.61703826]
[1728227090300,72.88813982,2451.4,2450.6,0.7718]
[1728227090505,6.26437,2450.7,2450.6,0.7718]
[1728227090705,22.1259,2450.7,2450.6,0.7718]
[1728227090890,6.26463,2450.5,2450.4,0.96892393]
[1728227091091,16.573967,2450.5,2450.4,0.96892393]
[1728227091295,16.573967,2450.5,2450.4,35.96892393]
[1728227093821,10.384226,2450.5,2450.4,35.96892393]
[1728227094098,14.30259663,2450.5,2450.4,35.96892393]
[1728227094297,14.30259663,2450.5,2450.4,0.96892393]
[1728227094714,14.30259663,2450.5,2450.4,35.96892393]
[1728227095644,9.751422,2450.5,2450.4,35.96892393]
[1728227095847,13.11979263,2450.5,2450.4,35.96892393]
[1728227097036,13.66979263,2450.5,2450.4,35.96892393]
[1728227097337,13.66979263,2450.5,2450.4,0.96892393]
[1728227098301,17.85216326,2450.5,2450.4,0.96892393]
[1728227098503,6.26583,2449.6,2449.5,1.02179963]
[1728227098746,9.63420063,2449.6,2449.5,1.02179963]
[1728227098911,9.63420063,2449.6,2449.5,36.02179963]
[1728227099849,6.26583,2449.6,2449.5,36.02179963]
[1728227100352,36.90674963,2449.6,2449.5,36.02179963]
[1728227100649,34.16174963,2449.6,2449.5,1.02179963]
[1728227100947,35.53124963,2449.6,2449.5,1.02179963]
[1728227101915,18.23986,2449.6,2449.5,1.02179963]
[1728227102144,9.976434,2449.6,2449.5,1.02179963]
[1728227102507,9.488359,2449.6,2449.5,1.02179963]
[1728227103057,8.944238,2449.6,2449.5,1.02179963]
[1728227103407,6.26583,2449.6,2449.5,1.02179963]
[1728227104037,3.0,2449.6,2449.5,1.02179963]
[1728227104241,3.26495,2450.3,2449.6,0.7738]
[1728227104444,3.26464,2450.5,2449.8,0.7738]
[1728227104757,3.26533,2450.0,2449.8,0.7738]
[1728227105056,3.26533,2450.0,2449.9,35.0]
[1728227105351,6.53043,2450.1,2449.9,35.0]
[1728227105647,3.26517,2450.1,2450.0,0.7738]
[1728227105833,3.26508,2450.2,2450.0,0.7738]
[1728227106238,3.26517,2450.1,2450.0,0.7738]
[1728227106439,3.26498,2450.3,2450.0,0.7738]
[1728227106629,3.26517,2450.1,2450.0,0.7738]
[1728227106954,6.26517,2450.1,2450.0,35.7738]
[1728227107380,20.811604,2450.1,2450.0,35.7738]
[1728227108079,20.811604,2450.1,2450.0,35.0]
[1728227108669,19.32538,2450.1,2450.0,35.0]
[1728227109177,18.92538,2450.1,2450.0,35.0]
[1728227110473,18.92538,2450.1,2449.8,0.7738]
[1728227110474,6.26543,2449.9,2449.8,0.7738]
[1728227110878,6.26543,2449.9,2449.5,1.79559963]
[1728227110879,3.26583,2449.6,2449.5,1.79559963]
[1728227111112,22.207973,2449.6,2449.5,1.02179963]
[1728227111383,19.139514,2449.6,2449.5,36.02179963]
[1728227111690,9.785111,2449.6,2449.5,36.02179963]
[1728227112382,9.785111,2449.6,2449.5,1.02179963]
[1728227112383,14.52298163,2449.6,2449.5,1.02179963]
[1728227113445,9.785111,2449.6,2449.5,1.02179963]
[1728227114676,9.0692,2449.6,2449.5,1.02179963]
[1728227114977,9.0692,2449.6,2449.5,36.02179963]
[1728227116791,6.26583,2449.6,2449.5,36.02179963]
[1728227118591,14.242437,2449.6,2449.5,36.02179963]
[1728227119701,9.63420063,2449.6,2449.5,36.02179963]
[1728227119926,40.97121063,2449.6,2449.5,36.02179963]
[1728227120047,40.97121063,2449.6,2449.5,1.02179963]
[1728227120048,41.52121063,2449.6,2449.5,1.02179963]
[1728227121751,42.06518047,2449.6,2449.5,1.02179963]
[1728227124057,41.52121063,2449.6,2449.5,1.02179963]
[1728227128306,42.12886253,2449.6,2449.5,1.02179963]
[1728227129386,41.52121063,2449.6,2449.5,1.02179963]
[1728227130059,38.52121063,2449.6,2449.5,1.02179963]
[1728227130885,34.36294,2449.6,2449.5,1.02179963]
[1728227131081,34.36294,2449.6,2449.5,1.77619963]
[1728227131082,5.472184,2449.6,2449.5,1.77619963]
[1728227131496,5.472184,2449.6,2449.5,36.77619963]
[1728227132302,8.472184,2449.6,2449.5,36.77619963]
[1728227134407,8.472184,2449.6,2449.5,1.77619963]
[1728227135109,8.472184,2449.6,2449.5,36.77619963]
[1728227136219,6.26583,2449.6,2449.5,36.02179963]
[1728227136429,16.415401,2449.6,2449.5,1.02179963]
[1728227137380,16.965401,2449.6,2449.5,1.02179963]
[1728227137596,6.26583,2449.6,2449.5,1.02179963]
[1728227137797,14.563289,2449.6,2449.5,1.77619963]
[1728227138406,14.563289,2449.6,2449.5,1.02179963]
[1728227138606,15.113289,2449.6,2449.5,1.02179963]
[1728227139324,14.563289,2449.6,2449.5,1.02179963]
[1728227139798,13.322411,2449.6,2449.5,1.02179963]
[1728227141287,13.872411,2449.6,2449.5,1.02179963]
[1728227141740,13.322411,2449.6,2449.5,1.02179963]
[1728227143110,13.872411,2449.6,2449.5,1.02179963]
[1728227143317,14.635811,2449.6,2449.5,1.02179963]
[1728227144237,14.67244561,2449.6,2449.5,0.1569213]
[1728227144467,14.67244561,2449.6,2448.8,0.1231741]
[1728227144468,6.26677,2448.9,2448.8,0.1231741]
[1728227144735,46.239899,2448.9,2448.8,0.1231741]
[1728227145610,50.15826963,2448.9,2448.8,0.1231741]
[1728227147212,50.92166963,2448.9,2448.8,0.1231741]
[1728227147816,55.62936963,2448.9,2448.8,0.1231741]
[1728227148537,51.32936963,2448.9,2448.8,0.1231741]
[1728227148955,4.03043,2448.7,2448.6,1.07467532]
[1728227149155,72.74350563,2448.7,2448.6,1.07467532]
[1728227149370,72.33580563,2448.7,2448.6,1.07467532]
[1728227150874,72.33580563,2448.7,2448.6,0.18517441]
[1728227151239,72.74350563,2448.7,2448.6,0.18517441]
[1728227151633,72.33580563,2448.7,2448.6,0.18517441]
[1728227153760,71.78580563,2448.7,2448.6,0.18517441]
[1728227153962,42.945689,2448.7,2448.6,0.18517441]
[1728227154161,46.31405963,2448.7,2448.6,0.18517441]
[1728227155248,49.86405963,2448.7,2448.6,0.18517441]
[1728227156352,50.62745963,2448.7,2448.6,0.18517441]
[1728227156553,51.01861914,2448.7,2448.6,0.18517441]
[1728227157087,46.88684851,2448.7,2448.6,0.18517441]
[1728227157290,33.264225,2448.7,2448.6,0.18517441]
[1728227157464,27.975035,2448.7,2448.6,0.18517441]
[1728227158552,23.91638,2448.7,2448.6,0.94057441]
[1728227158754,20.961578,2448.7,2448.6,0.94057441]
[1728227159373,20.688575,2448.7,2448.6,0.94057441]
[1728227159886,23.688575,2448.7,2448.6,0.94057441]
[1728227160295,20.138575,2448.7,2448.6,0.94057441]
[1728227160452,17.147584,2448.7,2448.6,0.94057441]
[1728227160657,3.26703,2448.7,2448.6,0.94057441]
[1728227161904,6.26703,2448.7,2448.6,0.94057441]
[1728227163908,14.203845,2448.7,2448.6,0.94057441]
[1728227165174,14.203845,2448.7,2448.6,0.18517441]
[1728227165380,14.753845,2448.7,2448.6,0.18517441]
[1728227166102,10.70543843,2448.7,2448.6,0.18517441]
[1728227167195,12.04333843,2448.7,2448.6,0.18517441]
[1728227167766,11.25543843,2448.7,2448.6,0.18517441]
[1728227169312,7.45671543,2448.7,2448.6,0.18517441]
[1728227169474,68.84372043,2448.7,2448.6,0.18517441]
[1728227169880,62.19060943,2448.7,2448.6,0.18517441]
[1728227170401,61.67615943,2448.7,2448.6,0.18517441]
[1728227170702,62.09497817,2448.7,2448.6,0.18517441]
[1728227171001,62.51677872,2448.7,2448.6,0.18517441]
[1728227172108,63.01513045,2448.7,2448.6,0.18517441]
[1728227172592,63.58380631,2448.7,2448.6,0.18517441]
[1728227172809,62.51677872,2448.7,2448.6,0.18517441]
[1728227173113,65.88514935,2448.7,2448.6,0.18517441]
[1728227175088,65.46633061,2448.7,2448.6,0.18517441]
[1728227176293,65.964475,2448.7,2448.6,0.18517441]
[1728227176488,66.373575,2448.7,2448.6,0.18517441]
[1728227177035,70.673575,2448.7,2448.6,0.18517441]
[1728227177232,70.673575,2448.7,2448.6,0.07122066]
[1728227178420,6.81824,2447.8,2447.7,1.12755102]
[1728227178590,69.25622063,2447.8,2447.7,1.12755102]
[1728227178944,67.52088963,2447.8,2447.7,1.12755102]
[1728227179106,64.63774263,2447.8,2447.7,1.12755102]
[1728227181334,28.43783363,2447.8,2447.7,1.12755102]
[1728227181492,28.89731192,2447.8,2447.7,1.12755102]
[1728227181896,28.43783363,2447.8,2447.7,1.12755102]
[1728227182532,65.25886563,2447.8,2447.7,1.12755102]
[1728227182928,41.188235,2447.8,2447.7,1.12755102]
[1728227183129,9.123468,2447.8,2447.7,1.12755102]
[1728227183335,6.123468,2447.8,2447.7,1.12755102]
[1728227184226,6.673468,2447.8,2447.7,1.12755102]
[1728227184658,9.673468,2447.8,2447.7,1.12755102]
[1728227185657,9.123468,2447.8,2447.7,1.12755102]
[1728227185820,9.123468,2447.8,2447.7,1.95555102]
[1728227185821,3.0,2447.8,2447.7,1.95555102]
[1728227186023,3.26811,2447.9,2447.7,1.95555102]
[1728227186587,3.26792,2448.1,2447.8,0.828]
[1728227186810,3.26763,2448.3,2447.8,0.828]
[1728227187062,0.63968543,2448.7,2447.7,1.12755102]
[1728227187293,3.2681,2447.9,2447.8,0.828]
[1728227187421,3.26824,2447.8,2447.7,1.12755102]
[1728227188072,6.26824,2447.8,2447.7,1.95555102]
[1728227188438,3.0,2447.8,2447.7,1.95555102]
[1728227189078,3.36837063,2448.4,2447.7,1.95555102]
[1728227189079,3.26772,2448.2,2447.8,0.828]
[1728227189225,3.26767,2448.3,2447.8,0.828]
[1728227189429,3.26778,2448.2,2447.8,0.828]
[1728227189962,3.26786,2448.1,2447.8,0.828]
[1728227190390,3.0,2448.0,2447.8,0.828]
[1728227190982,3.0,2448.2,2447.8,0.828]
[1728227191776,3.0,2448.0,2447.8,0.828]
[1728227192481,3.26788,2448.1,2447.8,0.828]
[1728227192887,3.0,2448.0,2447.8,0.828]
[1728227193482,6.36837063,2448.0,2447.9,0.828]
[1728227194339,9.63634063,2448.0,2447.9,0.828]
[1728227194544,6.36837063,2448.0,2447.9,0.828]
[1728227195786,9.63634063,2448.0,2447.9,0.828]
[1728227195987,6.36837063,2448.0,2447.9,0.828]
[1728227196553,9.63634063,2448.0,2447.9,0.828]
[1728227196974,6.36837063,2448.0,2447.9,0.828]
[1728227197700,6.26765,2448.3,2447.9,0.828]
[1728227197896,0.63968543,2448.7,2447.9,0.828]
[1728227197897,9.63634063,2448.0,2447.9,0.828]
[1728227200257,9.63634063,2448.0,2447.9,35.828]
[1728227200966,3.0,2448.0,2447.9,39.5235551]
[1728227201167,9.63634063,2448.0,2447.9,35.828]
[1728227202009,13.55471126,2448.0,2447.9,35.0]
[1728227202168,6.26824,2447.8,2447.7,1.12755102]
[1728227202355,6.26824,2447.8,2447.7,1.94705102]
[1728227202899,3.0,2447.8,2447.7,1.94705102]
[1728227203085,6.26824,2447.8,2447.7,1.94705102]
[1728227203754,3.0,2447.8,2447.7,1.94705102]
[1728227203960,6.26824,2447.8,2447.7,1.94705102]
[1728227204668,6.26824,2447.8,2447.7,36.94705102]
[1728227205679,9.63661063,2447.8,2447.7,36.94705102]
[1728227206566,6.26824,2447.8,2447.7,36.94705102]
[1728227206766,6.26824,2447.8,2447.7,38.59268892]
[1728227209479,6.26824,2447.8,2447.7,1.12755102]
[1728227209480,9.63661063,2447.8,2447.7,1.12755102]
[1728227209688,12.35558663,2447.8,2447.7,1.12755102]
[1728227209887,9.63661063,2447.8,2447.7,1.12755102]
[1728227212099,9.63661063,2447.8,2447.7,1.93375102]
[1728227212678,9.63661063,2447.8,2447.7,36.93375102]
[1728227212922,9.63661063,2447.8,2447.7,40.62712612]
[1728227213270,9.63661063,2447.8,2447.7,36.93375102]
[1728227213678,6.26824,2447.8,2447.7,36.93375102]
[1728227214607,3.0,2447.8,2447.7,36.93375102]
[1728227215404,3.0,2447.9,2447.8,0.8062]
[1728227215568,3.26766,2448.3,2447.9,0.8062]
[1728227215879,3.26785,2448.1,2447.9,0.8062]
[1728227216070,6.53577,2448.1,2447.9,0.8062]
[1728227216266,3.26785,2448.1,2447.9,0.8062]
[1728227216672,3.26785,2448.1,2447.9,0.85888864]
[1728227216906,3.2677,2448.2,2448.1,0.8062]
[1728227217579,3.26767,2448.3,2448.1,0.8062]
[1728227218406,3.0,2448.2,2448.1,0.8062]
[1728227219217,9.63607063,2448.2,2448.1,35.8062]
[1728227221251,3.0,2448.2,2448.1,39.38682]
[1728227221930,3.26734,2448.5,2448.1,39.38682]
[1728227221931,3.0,2448.4,2448.1,39.38682]
[1728227222149,3.0,2448.4,2448.1,38.58062]
[1728227222296,3.26719,2448.6,2448.2,0.91012532]
[1728227222499,3.26712,2448.7,2448.4,0.8286]
[1728227222699,3.2673,2448.5,2448.4,0.91013677]
[1728227223013,3.2673,2448.5,2448.4,0.8286]
[1728227226341,3.2673,2448.5,2448.2,0.8286]
[1728227226342,3.26759,2448.3,2448.2,0.8286]
[1728227226552,3.26759,2448.3,2448.2,4.41146]
[1728227228235,6.26759,2448.3,2448.2,0.8286]
[1728227228653,3.2673,2448.5,2448.2,0.8286]
[1728227228654,3.0,2448.5,2448.2,0.8286]
[1728227228945,3.0,2448.4,2448.2,0.8286]
[1728227230101,6.26746,2448.4,2448.2,0.8286]
[1728227232142,3.0,2448.4,2448.2,0.8286]
[1728227232305,3.0,2448.4,2448.3,2.12387249]
[1728227232945,6.26743,2448.4,2448.3,2.12387249]
[1728227233613,3.26738,2448.5,2448.3,2.12387249]
[1728227234016,6.5348,2448.5,2448.3,2.12387249]
[1728227234426,3.26743,2448.4,2448.3,2.12387249]
[1728227234807,3.26738,2448.5,2448.3,2.12387249]
[1728227235341,6.53477,2448.5,2448.3,2.12387249]
[1728227235544,3.26738,2448.5,2448.3,2.12387249]
[1728227235743,6.5348,2448.5,2448.3,2.12387249]
[1728227236075,3.26705,2448.7,2448.5,0.8286]
[1728227236535,3.26688,2448.9,2448.5,0.8286]
[1728227236710,3.2669,2448.8,2448.5,0.8286]
[1728227237050,3.26688,2448.9,2448.6,35.0]
[1728227237267,3.0,2448.8,2448.6,38.61238473]
[1728227238046,3.26627,2449.3,2448.7,0.8286]
[1728227238047,3.2663,2449.3,2448.7,0.8286]
[1728227238212,3.2663,2449.3,2448.8,0.8286]
[1728227238646,3.26651,2449.1,2448.9,35.0]
[1728227238843,3.26651,2449.1,2449.0,3.58286]
[1728227239250,3.26651,2449.1,2448.8,0.8286]
[1728227239450,3.26651,2449.1,2449.0,35.0]
[1728227239647,3.2663,2449.3,2449.0,35.0]
[1728227240687,6.26602,2449.5,2449.2,0.8114]
[1728227240890,3.0,2449.3,2449.2,0.8114]
[1728227241684,3.0,2449.3,2449.2,2.74350996]
[1728227242572,6.26623,2449.3,2449.2,2.74350996]
[1728227243360,6.26623,2449.3,2449.0,35.0]
[1728227243361,3.0,2449.1,2449.0,35.0]
[1728227243612,6.36837063,2449.1,2449.0,35.0]
[1728227243758,9.63487063,2449.1,2449.0,35.0]
[1728227243962,10.44877063,2449.1,2449.0,35.0]
[1728227246105,6.2665,2449.1,2449.0,35.0]
[1728227246470,3.26664,2449.0,2448.7,0.8114]
[1728227246690,3.26664,2449.0,2448.7,1.219269]
[1728227246865,3.0,2449.1,2448.7,1.219269]
[1728227247062,3.0,2449.2,2448.9,35.0]
[1728227248017,3.0,2449.2,2449.0,0.8114]
[1728227248615,3.0,2449.3,2449.0,0.8114]
[1728227248967,3.0,2449.3,2449.0,4.719223]
[1728227249592,5.76233765,2449.3,2449.0,4.719223]
[1728227249969,2.49608765,2449.3,2449.0,4.719223]
[1728227250382,5.76233765,2449.3,2449.0,4.719223]
[1728227251071,3.26638,2449.2,2449.0,4.719223]
[1728227251368,3.26638,2449.2,2449.0,0.8114]
[1728227251670,3.0,2449.1,2449.0,0.8114]
[1728227252184,3.0,2449.1,2449.0,35.8114]
[1728227252706,3.0,2449.2,2449.0,35.8114]
[1728227252872,3.0,2449.2,2449.0,39.39254]
[1728227253676,3.26605,2449.5,2449.0,39.39254]
[1728227254008,6.63442063,2449.5,2449.0,39.39254]